[Event "Baku Open 2024"]
[Site "Baku"]
[Date "2024.07.05"]
[Round "7.36"]
[White "Sherali Pattnaik"]
[Black "Bayramov, Zaur"]
[Result "1/2-1/2"]
[ECO "B42"]
[WhiteElo "1955"]
[BlackElo "2249"]
[Annotator "TA"]
[PlyCount "100"]
[EventDate "2024.06.29"]
[EventType "swiss"]
[EventCountry "AZE"]
[SourceTitle "playchess.com"]
[Source "ChessBase"]
[SourceQuality "1"]
[TimeControl "5400+30"]

{[%evp 15,100,0,0,-48,-2,-19,-10,-25,0,0,0,0,30,15,39,33,108,44,39,37,78,2,7,0,0,-36,-30,-31,-5,-9,-12,-8,-9,-12,-8,-4,0,0,0,0,0,0,0,0,0,0,30,37,20,47,30,1,247,255,247,170,212,258,247,185,150,118,118,116,112,34,60,24,8,16,10,8,8,8,8,0,19,19,19,0,0,0,0,0,0,0,0]} 1. e4 {[%emt 0:01:59]} c5 {[%emt 0:00:08]} 2. Nf3 {[%emt 0:00:04]} e6 {[%emt 0:00:05]} 3. d4 {[%emt 0:00:04]} cxd4 {[%emt 0:00:07]} 4. Nxd4 {[%emt 0:00:04]} a6 {[%emt 0:00:07]} 5. Bd3 {[%emt 0:00:07]} Qc7 {[%emt 0:00:36]} 6. O-O {[%emt 0:00:11]} Nf6 {[%emt 0:01:06]} 7. c4 {[%emt 0:00:03]} Nc6 {[%emt 0:00:27]} 8. Nxc6 {[%emt 0:00:05]} dxc6 {[%emt 0:01:48]} 9. Qe1 {[%emt 0:05:02]} (9. Qe2 $11 {ist überlegen.}) 9... e5 {[%emt 0:02:24]} (9... Ng4 $15 10. g3 e5) 10. Nd2 {[%emt 0:05:22]} h6 {[%emt 0:01:44]} 11. f4 {[%emt 0:03:34]} Be7 {[%emt 0:10:50]} (11... exf4 {sieht schärfer aus.} 12. e5 Ng4 13. Ne4 Nxe5 14. Bxf4 Be6) 12. f5 {[%emt 0:13:47]} b5 {[%emt 0:12:36]} 13. Nf3 {[%emt 0:05:09]} Bd6 {[%emt 0:08:53]} 14. Kh1 {[%emt 0:06:32]} Qe7 {[%emt 0:04:31]} 15. Bd2 {[%emt 0:03:16]} b4 {[%emt 0:05:36] [#]} (15... Bb7 $14) 16. a3 {[%emt 0:05:44]} bxa3 $14 {[%emt 0:04:31]} 17. bxa3 {[%emt 0:01:38]} Nd7 {[%emt 0:07:08][%cal Oa8b8]} 18. Bb4 {[%emt 0:07:00]} ({Besser ist} 18. Qg3 $16) 18... Rb8 {[%emt 0:10:46]} 19. Rb1 {[%emt 0:03:42]} O-O {[%emt 0:03:45]} 20. Qg3 {[%emt 0:04:47][%cal Of3d4]} Bxb4 {[%emt 0:05:12]} 21. axb4 {[%emt 0:00:36]} Rxb4 {[%emt 0:00:13]} 22. Rxb4 {[%emt 0:02:12]} Qxb4 {[%emt 0:00:06]} 23. Nxe5 {[%emt 0:00:10]} Nxe5 {[%emt 0:02:44]} 24. Qxe5 {[%emt 0:00:03]} Rd8 {[%emt 0:02:18]} 25. Be2 {[%emt 0:11:38]} f6 {[%emt 0:02:15]} 26. Qc7 {[%emt 0:00:50][%csl LRc6,LRd8]} Qd6 {[%emt 0:00:36]} 27. Qxd6 {[%emt 0:00:02]} Rxd6 $11 {[%emt 0:00:01][%cal Bd8d6,Bd6c6,Bc6c7][%mdl 4128] Endspiel. KRB-KRB} 28. Kg1 {[%emt 0:00:19]} c5 {[%emt 0:02:00]} 29. Rb1 {[%emt 0:00:59]} Kf7 {[%emt 0:00:38]} 30. Rb8 {[%emt 0:02:38]} Rc6 {[%emt 0:03:08]} 31. Kf2 {[%emt 0:02:13]} Ke7 {[%emt 0:00:14]} 32. Bf3 {[%emt 0:01:26][%cal Oe4e5]} Rc7 {[%emt 0:00:54]} 33. Ke3 {[%emt 0:00:29]} Kd7 $2 {[%emt 0:01:14] [#]} (33... Bb7 $1 $11 {und Schwarz ist OK.}) 34. e5 $1 $18 {[%emt 0:01:49][%mdl 512]} fxe5 {[%emt 0:03:53]} 35. Bd5 {[%emt 0:00:54]} Kd6 {[%emt 0:01:43] [#]} 36. Ke4 {[%emt 0:00:12]} a5 {[%emt 0:00:41]} 37. Ra8 {[%emt 0:00:48]} Bb7 {[%emt 0:01:51]} 38. Bxb7 {[%emt 0:00:02]} Rxb7 $16 {[%emt 0:00:08] KR-KR} 39. Ra6+ {[%emt 0:00:06]} Ke7 {[%emt 0:00:25]} 40. Rxa5 {[%emt 0:00:12] Weiß steht aktiver.} (40. Kxe5 $16 {[%cal Oh2h3] Schwarz muss nun h3! beachten.} Rb2 41. Ra7+ (41. Rxa5 Rxg2 42. Rxc5 Re2+ 43. Kf4 Rf2+ 44. Kg3 Rc2 $11) 41... Kf8 42. g3 (42. Rxa5 Rxg2 43. Rxc5 Rxh2 $11)) 40... Rb2 $14 {[%emt 0:00:24]} 41. Rxc5 {[%emt 0:02:28]} ({Natürlich nicht} 41. Kxe5 Re2+ 42. Kd5 Rxg2 $11) 41... Rxg2 {[%emt 0:00:08]} 42. Rxe5+ {[%emt 0:00:04] Die Stellung ist ausgeglichen.} Kd6 {[%emt 0:01:32] ( -> ...Re2+)} 43. Re6+ {[%emt 0:00:26]} Kc5 {[%emt 0:00:48]} 44. Rg6 {[%emt 0:00:02]} Re2+ {[%emt 0:00:44]} (44... Rxg6 45. fxg6 Kd6 46. c5+ Kc6 47. Ke5 (47. Kd4 h5 48. h4 Kc7 49. Ke5 Kd7 50. Kd5 Kd8 51. Ke6 Kc7) 47... Kd7 48. Kd5 h5 49. h4) 45. Kd3 {[%emt 0:00:38]} Rxh2 {[%emt 0:01:28]} 46. Rxg7 {[%emt 0:00:05] Droht stark Ke4.} Rh4 {[%emt 0:00:20]} 47. Rh7 {[%emt 0:01:12] Droht f6 und aus.} Rf4 {[%emt 0:00:36]} 48. Rc7+ {[%emt 0:00:37]} Kd6 {[%emt 0:00:11]} 49. Ra7 {[%emt 0:00:11]} Rxf5 {[%emt 0:00:26]} 50. Ra6+ {[%emt 0:00:03]} Ke5 {[%emt 0:00:18] Weiß hat ein paar 100-prozentige Torchancen vergeben.   Gewichteter Fehlerwert: Weiß=0.15 (sehr präzise) /Schwarz=0.20 (präzise) .  Verlustzug:     	---       	Schwarz=1     Fehler:       	Weiß=3     	Schwarz=2     Ungenau:       	Weiß=3     	Schwarz=4     OK:         	Weiß=13    	Schwarz=16    Bester:       	Weiß=3     	Schwarz=6     Brilliant:      	Weiß=1     	---} 1/2-1/2

[Event "Baku Open 2024"]
[Site "Baku"]
[Date "2024.07.05"]
[Round "7.37"]
[White "Davudov, Tunar"]
[Black "Gurbanov, Ismayil"]
[Result "1-0"]
[ECO "C07"]
[WhiteElo "2249"]
[BlackElo "2163"]
[Annotator "RC"]
[PlyCount "159"]
[EventDate "2024.06.29"]
[EventType "swiss"]
[EventCountry "AZE"]
[SourceTitle "playchess.com"]
[Source "ChessBase"]
[SourceQuality "1"]
[TimeControl "5400+30"]

1. e4 {[%emt 0:04:32]} e6 {[%emt 0:00:01]} 2. d4 {[%emt 0:00:21]} d5 {[%emt 0:00:03]} 3. Nd2 {[%emt 0:00:07]} c5 {[%emt 0:00:04]} 4. Ngf3 {[%emt 0:00:16]} a6 {[%emt 0:00:29]} 5. dxc5 {[%emt 0:00:31]} Bxc5 {[%emt 0:00:04]} 6. Bd3 {[%emt 0:00:23]} Nc6 {[%emt 0:00:13]} 7. O-O {[%emt 0:00:40]} Nge7 {[%emt 0:00:05]} 8. exd5 {[%emt 0:00:55]} exd5 {[%emt 0:00:43]} 9. c3 {[%emt 0:00:37]} O-O {[%emt 0:00:08]} 10. Nb3 {[%emt 0:00:27]} Bb6 {[%emt 0:00:06]} 11. Re1 {[%emt 0:01:37]} Bf5 {[%emt 0:00:39]} 12. Be3 {[%emt 0:05:09]} Bg6 {[%emt 0:11:36]} 13. Bxg6 {[%emt 0:13:12]} hxg6 {[%emt 0:02:41]} 14. Qd3 {[%emt 0:11:16]} Bxe3 {[%emt 0:05:24]} 15. Rxe3 {[%emt 0:03:41]} Qc7 {[%emt 0:14:13]} 16. Nbd4 {[%emt 0:02:33]} Nxd4 {[%emt 0:04:17]} 17. Nxd4 {[%emt 0:00:12]} Nc6 {[%emt 0:00:02]} 18. Rae1 {[%emt 0:01:41]} Nxd4 {[%emt 0:06:45]} 19. Qxd4 {[%emt 0:00:34]} Qc4 {[%emt 0:00:06]} 20. Qxc4 {[%emt 0:12:56]} dxc4 {[%emt 0:00:04]} 21. Re7 {[%emt 0:00:31]} b5 {[%emt 0:00:51]} 22. Rd1 {[%emt 0:02:48]} Rfd8 {[%emt 0:01:41]} 23. Rdd7 {[%emt 0:01:01]} Rxd7 {[%emt 0:00:19]} 24. Rxd7 {[%emt 0:00:06]} Re8 {[%emt 0:00:02]} 25. Kf1 {[%emt 0:00:06]} Re6 {[%emt 0:00:01]} 26. Rd8+ {[%emt 0:00:12]} Kh7 {[%emt 0:00:05]} 27. h4 {[%emt 0:02:38]} f6 {[%emt 0:12:10]} 28. Rc8 {[%emt 0:11:53]} Rd6 {[%emt 0:00:30]} 29. Ke2 {[%emt 0:04:10]} Re6+ {[%emt 0:00:01]} 30. Kd2 {[%emt 0:00:11]} Rd6+ {[%emt 0:00:01]} 31. Kc2 {[%emt 0:00:16]} Re6 {[%emt 0:00:01]} 32. Rd8 {[%emt 0:00:21]} Re2+ {[%emt 0:07:24]} 33. Rd2 {[%emt 0:00:01]} Re4 {[%emt 0:00:01]} 34. g3 {[%emt 0:00:01]} Kg8 {[%emt 0:00:01]} 35. b3 {[%emt 0:08:15]} Kf7 {[%emt 0:05:45]} 36. Rd7+ {[%emt 0:00:39]} Ke6 {[%emt 0:00:06]} 37. Rxg7 {[%emt 0:00:23]} Re2+ {[%emt 0:00:06]} 38. Kb1 {[%emt 0:00:21]} cxb3 {[%emt 0:14:24]} 39. axb3 {[%emt 0:00:02]} Kf5 {[%emt 0:01:16]} 40. f3 {[%emt 0:00:45]} Re3 {[%emt 0:18:02]} 41. g4+ {[%emt 0:01:08]} Ke6 {[%emt 0:00:00]} 42. Kb2 {[%emt 0:03:17]} Rxf3 {[%emt 0:00:00]} 43. Rxg6 {[%emt 0:00:13]} Kf7 {[%emt 0:00:00]} 44. Rh6 {[%emt 0:00:12]} a5 {[%emt 0:00:00]} 45. Rh7+ {[%emt 0:02:47]} Ke6 {[%emt 0:00:00]} 46. Rb7 {[%emt 0:00:17]} Rf4 {[%emt 0:00:00]} 47. Rb6+ {[%emt 0:00:08]} Kd7 {[%emt 0:00:00]} 48. Rxb5 {[%emt 0:00:27]} Rxg4 {[%emt 0:00:02]} 49. Rxa5 {[%emt 0:00:55]} Rxh4 {[%emt 0:00:13]} 50. b4 {[%emt 0:00:55]} Rf4 {[%emt 0:00:11]} 51. Rd5+ {[%emt 0:01:13]} Kc6 {[%emt 0:00:07]} 52. Rd4 {[%emt 0:00:20]} Rf1 {[%emt 0:00:35]} 53. Kb3 {[%emt 0:00:08]} f5 {[%emt 0:00:02]} 54. Kc4 {[%emt 0:00:09]} f4 {[%emt 0:00:17]} 55. b5+ {[%emt 0:00:06]} Kb7 {[%emt 0:01:07]} 56. Kc5 {[%emt 0:00:19]} f3 {[%emt 0:00:06]} 57. Rd7+ {[%emt 0:00:18]} Kc8 {[%emt 0:00:14]} 58. Rf7 {[%emt 0:00:14]} f2 {[%emt 0:00:05]} 59. c4 {[%emt 0:00:17]} Kd8 {[%emt 0:00:25]} 60. b6 {[%emt 0:00:10]} Ke8 {[%emt 0:00:04]} 61. Rf3 {[%emt 0:00:49]} Kd7 {[%emt 0:00:12]} 62. Rf8 {[%emt 0:01:02]} Ke7 {[%emt 0:00:12]} 63. Rf4 {[%emt 0:01:32]} Kd7 {[%emt 0:02:38]} 64. b7 {[%emt 0:00:31]} Rb1 {[%emt 0:00:17]} 65. Rxf2 {[%emt 0:00:08]} Kc7 {[%emt 0:00:29]} 66. Rf7+ {[%emt 0:00:06]} Kb8 {[%emt 0:00:01]} 67. Kd5 {[%emt 0:00:19]} Rh1 {[%emt 0:02:10]} 68. Rd7 {[%emt 0:02:17]} Rh6 {[%emt 0:00:48]} 69. c5 {[%emt 0:07:13]} Rh5+ {[%emt 0:00:51]} 70. Kc4 {[%emt 0:00:34]} Rh6 {[%emt 0:00:25]} 71. Re7 {[%emt 0:00:21]} Rg6 {[%emt 0:00:31]} 72. Kd5 {[%emt 0:00:13]} Rg5+ {[%emt 0:02:47]} 73. Kd6 {[%emt 0:01:05]} Rg6+ {[%emt 0:00:33]} 74. Re6 {[%emt 0:00:09]} Rg1 {[%emt 0:00:25]} 75. c6 {[%emt 0:00:59]} Rd1+ {[%emt 0:00:18]} 76. Ke5 {[%emt 0:00:09]} Rd8 {[%emt 0:00:16]} 77. Re7 {[%emt 0:00:20]} Rh8 {[%emt 0:00:18]} 78. Ke6 {[%emt 0:00:08]} Ka7 {[%emt 0:02:21]} 79. Kd7 {[%emt 0:00:18]} Rh1 {[%emt 0:00:00]} 80. b8=Q+ {[%emt 0:00:11]} 1-0

[Event "Baku Open 2024"]
[Site "Baku"]
[Date "2024.07.05"]
[Round "7.38"]
[White "Zhalmakhanov, Ramazan"]
[Black "Javadov, Habil"]
[Result "1-0"]
[ECO "D37"]
[WhiteElo "2505"]
[BlackElo "2195"]
[Annotator "TA"]
[PlyCount "45"]
[EventDate "2024.06.29"]
[EventType "swiss"]
[EventCountry "AZE"]
[SourceTitle "playchess.com"]
[Source "ChessBase"]
[SourceQuality "1"]
[TimeControl "5400+30"]

{[%evp 9,45,24,31,27,25,20,8,16,66,65,48,32,33,36,62,64,78,89,15,81,88,35,72,85,93,111,125,-13,-21,-3,202,208,491,495,1585,1618,29992,29993]} 1. c4 {[%emt 0:03:29]} e6 {[%emt 0:00:06]} 2. Nc3 {[%emt 0:01:27]} d5 {[%emt 0:00:10]} 3. d4 {[%emt 0:00:02]} a6 {[%emt 0:00:04]} 4. cxd5 {[%emt 0:01:08]} exd5 {[%emt 0:00:05]} 5. Nf3 {[%emt 0:00:06]} Nf6 {[%emt 0:00:05]} 6. Bg5 {[%emt 0:01:36]} Be6 {[%emt 0:00:05]} 7. Bxf6 {[%emt 0:03:50]} Qxf6 {[%emt 0:00:26]} 8. Qb3 {[%emt 0:00:05][%csl LRb7,LRd5] The position is equal.} b5 {[%emt 0:00:53]} (8... Ra7 $11) 9. a4 $1 $14 {[%emt 0:01:41]} (9. Nxd5 $2 Qd8 10. e4 c6 $19) 9... b4 {[%emt 0:00:23]} 10. Nxd5 {[%emt 0:03:29]} Qd8 {[%emt 0:00:57]} 11. e4 {[%emt 0:00:20] Threatens to win with Bc4.} c6 {[%emt 0:03:52] [#]} 12. Qe3 $1 {[%emt 0:02:51] White is much more active.} cxd5 {[%emt 0:00:32]} 13. exd5 {[%emt 0:00:09]} Qxd5 {[%emt 0:00:04]} 14. Rc1 {[%emt 0:02:13] Strongly threatening Bc4.} Be7 {[%emt 0:05:06]} 15. Bd3 $1 {[%emt 0:07:32] And now Be4 would win.} Qb7 {[%emt 0:00:15] ...Nd7 is the strong threat.} 16. Be4 $1 {[%emt 0:05:07]} Qa7 {[%emt 0:03:30][%cal Ob8d7] [#]} 17. Qf4 $1 {[%emt 0:13:06][%cal Od4d5] Black must now prevent d5!} Bd8 {[%emt 0:21:30][%cal Oe8g8]} ({Avoid the trap} 17... O-O $2 18. Rc7 Qb6 19. Rxe7 $18 (19. Bxa8 $2 {loses.} Bd6 $19)) 18. Bxa8 {[%emt 0:11:45]} (18. d5 $1 $16 {[%cal Rd5e6]} Bd7 19. Qe5+ Kf8 20. Qf4) 18... Qxa8 $11 {[%emt 0:00:06]} 19. d5 {[%emt 0:00:11]} Bxd5 {[%emt 0:09:39] [#] This move loses the game for Black.} (19... Qxd5 $11 20. O-O (20. Qxb8 Qe4+ 21. Kf1 O-O $17) 20... Qb7) 20. Qe5+ $1 $18 {[%emt 0:06:58]} Kd7 $2 {[%emt 0:12:22]} (20... Be6) 21. O-O {[%emt 0:04:56] aiming for Rfd1.} ({And not} 21. Qxg7 Re8+ 22. Kf1 Qb7 $11) 21... f6 {[%emt 0:00:51]} (21... Re8 $142) 22. Qf5+ {[%emt 0:01:16]} Be6 {[%emt 0:01:46]} 23. Rfd1+ {[%emt 0:03:25] Weighted Error Value: White=0.12 (very precise) /Black=0.74.  Loses game:     	---       	Black=1      Mistake:       	White=1     	Black=3      Inaccurate:     	---       	Black=1      OK:         	White=6     	Black=5      Best:        	White=2     	Black=2      Strong:       	White=6     	---} 1-0

[Event "Baku Open 2024"]
[Site "Baku"]
[Date "2024.07.05"]
[Round "7.39"]
[White "Prokhorov, Aleksey"]
[Black "Putrenko, Kirill"]
[Result "1-0"]
[ECO "C54"]
[WhiteElo "2161"]
[BlackElo "2349"]
[Annotator "TA"]
[PlyCount "117"]
[EventDate "2024.06.29"]
[EventType "swiss"]
[EventCountry "AZE"]
[SourceTitle "playchess.com"]
[Source "ChessBase"]
[SourceQuality "1"]
[TimeControl "5400+30"]

{[%evp 10,117,-23,-24,-14,-92,-63,-84,-85,-77,-97,-108,-62,-70,-59,-65,-58,-64,-58,-56,-58,-54,-15,-29,-10,0,-7,-17,-13,-11,-11,-12,-8,-10,-10,-10,-11,-14,0,0,0,-6,0,0,0,0,0,0,0,0,0,0,0,0,12,16,26,21,29,32,32,28,28,32,29,35,35,21,35,35,35,35,35,35,222,220,277,277,277,277,1181,349,1477,1359,29975,29976,29972,29977,29973,29978,29978,29979,29979,29980,29980,29981,29981,29982,29977,29983,29983,29984,29985,29986,29988,29989,29988,29989,29989,29990]} 1. e4 {[%emt 0:00:30]} e5 {[%emt 0:00:05]} 2. Nf3 {[%emt 0:00:34]} Nc6 {[%emt 0:00:10]} 3. Bc4 {[%emt 0:00:51]} Bc5 {[%emt 0:00:19]} 4. O-O {[%emt 0:00:42]} Nf6 {[%emt 0:00:37]} 5. c3 {[%emt 0:01:03]} Nxe4 {[%emt 0:09:23]} 6. d4 {[%emt 0:13:33]} d5 {[%emt 0:03:25]} 7. Re1 {[%emt 0:34:47]} (7. Nxe5 $11 Nxe5 (7... dxc4 8. Nxc6 bxc6 9. Re1 $11) 8. Bb3) 7... exd4 {[%emt 0:14:28]} 8. Nbd2 {[%emt 0:03:46]} O-O {[%emt 0:08:53] Black is better.} 9. Nxe4 {[%emt 0:01:13]} dxe4 {[%emt 0:00:44]} 10. Ng5 {[%emt 0:01:14] aiming for Qh5.} Be7 {[%emt 0:21:28]} (10... Bf5 $17 {...Ne5 would now be deadly.} 11. Nxe4 Bb6) 11. Qh5 {[%emt 0:05:51][%csl Gg5][%cal Rh5h7]} Bxg5 {[%emt 0:00:52]} 12. Bxg5 {[%emt 0:00:06]} Qd6 {[%emt 0:01:33]} 13. Rxe4 {[%emt 0:01:27]} Bf5 {[%emt 0:01:08]} 14. Ree1 {[%emt 0:07:00]} Bg6 {[%emt 0:01:37]} 15. Qf3 {[%emt 0:05:09]} Rae8 {[%emt 0:05:45]} 16. Qd5 {[%emt 0:02:51]} (16. Bf4 {simplifies} Qd7 17. h4 h5 18. Red1) 16... d3 {[%emt 0:06:02]} (16... dxc3 {simplifies} 17. Qxd6 cxd6 18. bxc3 Rxe1+ 19. Rxe1 Rc8) 17. Qxd6 {[%emt 0:07:43]} cxd6 {[%emt 0:00:15]} 18. f3 {[%emt 0:02:22]} h6 {[%emt 0:03:45]} 19. Bf4 {[%emt 0:00:27]} Ne5 {[%emt 0:00:59]} 20. Bxe5 {[%emt 0:03:37]} Rxe5 {[%emt 0:02:05]} 21. Rxe5 {[%emt 0:00:04]} dxe5 $11 {[%emt 0:00:07][%mdl 4096] Endgame. KRB-KRB} 22. Rd1 {[%emt 0:00:03]} Rd8 {[%emt 0:04:01]} 23. Kf2 {[%emt 0:00:05]} e4 {[%emt 0:02:31]} 24. fxe4 {[%emt 0:00:03]} Bxe4 {[%emt 0:00:05]} 25. Rd2 {[%emt 0:00:52]} g5 {[%emt 0:02:13]} 26. Ke3 {[%emt 0:00:21][%csl LRd3,LRe4]} Re8 {[%emt 0:00:36]} 27. Kf2 {[%emt 0:01:26]} Kg7 {[%emt 0:01:40]} 28. Bxd3 {[%emt 0:00:14]} Bc6 {[%emt 0:01:00]} 29. Bc2 {[%emt 0:00:19]} h5 {[%emt 0:01:13]} 30. c4 {[%emt 0:01:27]} a5 {[%emt 0:00:52]} 31. g3 {[%emt 0:03:28]} f5 {[%emt 0:02:37]} 32. Rd6 {[%emt 0:02:07]} (32. Bxf5 $2 {loses.} Rf8 33. b3 (33. g4 $2 hxg4 34. Kg3 Rxf5 $19) 33... Rxf5+ $19) 32... Re5 {[%emt 0:01:04]} 33. b3 {[%emt 0:00:14]} f4 {[%emt 0:02:37]} 34. gxf4 {[%emt 0:00:57]} gxf4 {[%emt 0:00:04]} 35. Rd4 {[%emt 0:00:43]} Rg5 {[%emt 0:02:42]} 36. Be4 {[%emt 0:00:05] Prevents Rg2+} Rg4 {[%emt 0:00:25][%cal Of4f3]} 37. Bxc6 {[%emt 0:00:24]} bxc6 {[%emt 0:00:01] KR-KR} 38. Rd7+ {[%emt 0:00:40]} Kf6 {[%emt 0:00:16]} 39. Ra7 {[%emt 0:00:44]} Rh4 {[%emt 0:01:04]} 40. Rxa5 {[%emt 0:00:06]} Rxh2+ {[%emt 0:00:11]} 41. Kf3 {[%emt 0:00:02]} Rh4 $2 {[%emt 0:00:25] Black cannot hold the game after this.} ({Better is} 41... h4 $14) 42. Rc5 $18 {[%emt 0:00:06]} Ke6 {[%emt 0:00:29]} 43. Rxc6+ {[%emt 0:00:09]} Ke5 {[%emt 0:00:03]} 44. Rc5+ {[%emt 0:00:05]} Kd4 $2 {[%emt 0:00:08]} (44... Kd6 45. Rb5 Rh2) 45. Rd5+ {[%emt 0:00:31]} Kc3 {[%emt 0:00:08]} 46. c5 {[%emt 0:00:06][%cal Bc4c5,Bc5c6][%mdl 32] White threatens c6 and mate.} Kb4 {[%emt 0:02:13]} 47. c6 {[%emt 0:00:19] White mates.} Rh3+ {[%emt 0:01:05]} 48. Kxf4 {[%emt 0:00:05]} Rc3 {[%emt 0:00:03]} 49. Rd4+ {[%emt 0:00:30]} ({Less strong is} 49. Rxh5 Rxc6 50. Ke3 Rd6 $16) 49... Kb5 {[%emt 0:00:07] [#]} 50. Rc4 $1 {[%emt 0:00:08]} Rxc4+ {[%emt 0:00:51]} 51. bxc4+ {[%emt 0:00:04]} Kxc6 {[%emt 0:00:22] [#] KPP-KP} 52. a4 $1 {[%emt 0:00:05][%cal Ba2a4,Ba4a5,Ba5a6][%mdl 32]} Kb6 {[%emt 0:00:56]} 53. Kg5 {[%emt 0:00:07]} Kc5 {[%emt 0:00:14]} 54. a5 {[%emt 0:00:06]} ({Weaker is} 54. Kxh5 Kxc4 55. Kh6 Kd5 $11) 54... Kc6 {[%emt 0:00:16]} 55. Kxh5 {[%emt 0:00:06]} Kb7 {[%emt 0:00:03]} 56. c5 {[%emt 0:00:06][%cal Bc4c5,Bc5c6][%mdl 32]} Ka6 {[%emt 0:00:25]} 57. c6 {[%emt 0:00:07]} Ka7 {[%emt 0:00:05]} 58. Kg6 {[%emt 0:00:09]} Kb8 {[%emt 0:00:07] [#]} 59. a6 $1 {[%emt 0:00:18] Weighted Error Value: White=0.04 (flawless) /Black=0.27 (precise) .  Loses game:     	---       	Black=1      Mistake:       	White=1     	Black=2      Inaccurate:     	---       	Black=4      OK:         	White=24    	Black=14     Best:        	White=4     	Black=1} 1-0

[Event "Baku Open 2024"]
[Site "Baku"]
[Date "2024.07.05"]
[Round "7.40"]
[White "Raahul V S"]
[Black "Bayramov, Elvin"]
[Result "1/2-1/2"]
[ECO "A23"]
[WhiteElo "2314"]
[BlackElo "2155"]
[Annotator "TA"]
[PlyCount "101"]
[EventDate "2024.06.29"]
[EventType "swiss"]
[EventCountry "AZE"]
[SourceTitle "playchess.com"]
[Source "ChessBase"]
[SourceQuality "1"]
[TimeControl "5400+30"]

{[%evp 15,101,10,20,17,32,-47,-40,-31,-28,-67,-40,-52,-52,-54,-55,-113,-22,-40,-45,-26,-25,-33,-22,-63,-4,-4,-11,-14,0,-5,-3,-10,0,-9,0,0,0,-70,-62,-69,0,0,0,0,6,9,12,6,18,12,12,11,5,0,0,0,0,0,0,0,39,0,48,31,40,20,79,79,79,79,79,79,79,79,79,42,86,86,86,86,86,86,86,86,86,86,100,84]} 1. c4 {[%emt 0:00:07]} e5 {[%emt 0:00:20][%cal Be7e5,Be5e4][%mdl 32]} 2. Nc3 {[%emt 0:00:06]} Nf6 {[%emt 0:00:10]} 3. g3 {[%emt 0:00:12]} c6 {[%emt 0:00:11]} 4. Nf3 {[%emt 0:00:31]} e4 {[%emt 0:01:35]} 5. Nd4 {[%emt 0:00:05]} d5 {[%emt 0:02:21]} 6. cxd5 {[%emt 0:01:02]} cxd5 {[%emt 0:00:07]} 7. d3 {[%emt 0:00:05]} Bc5 {[%emt 0:04:36]} 8. Nb3 {[%emt 0:02:04]} Bb4 {[%emt 0:05:09]} (8... Bb6 {simplifies} 9. dxe4 Nxe4 10. Nxe4 dxe4 11. Qxd8+ Bxd8 12. Bg2 f5) 9. dxe4 {[%emt 0:08:02]} Nxe4 {[%emt 0:00:31]} 10. Qd4 {[%emt 0:02:49]} ({White should play} 10. Bd2 $14 Bxc3 11. Bxc3) 10... Bxc3+ $15 {[%emt 0:02:28]} 11. bxc3 {[%emt 0:00:43] Black is slightly better.} O-O {[%emt 0:00:15]} 12. f3 {[%emt 0:00:25]} Nc6 {[%emt 0:00:17]} 13. Qe3 {[%emt 0:01:51]} Nd6 {[%emt 0:03:23]} 14. Bg2 {[%emt 0:00:19]} Re8 {[%emt 0:00:59]} 15. Qd3 {[%emt 0:02:00] [#]} (15. Qc5 $15) 15... Qe7 {[%emt 0:11:27]} (15... Bf5 $1 $17 {[%cal Rf5d3]} 16. Qxd5 Be6) 16. O-O $1 $11 {[%emt 0:09:00]} Qxe2 {[%emt 0:02:00]} 17. Qxd5 {[%emt 0:00:05]} Nf5 {[%emt 0:00:14]} 18. Qc5 {[%emt 0:04:05]} Ne5 {[%emt 0:10:19] Hoping for ...Nd3.} 19. Nd4 {[%emt 0:12:51]} (19. Qf2 {simplifies} Qb5 20. Re1 Bd7 21. g4) 19... Nd3 {[%emt 0:01:21]} ({Better is} 19... Nxd4 $15 20. Qxd4 Bf5) 20. Nxe2 {[%emt 0:05:04]} Nxc5 {[%emt 0:00:06] Excellent horsemanship.} 21. Nd4 {[%emt 0:01:48][%cal Be2d4,Bd4b5,Bb5c7][%mdl 32]} Nd3 {[%emt 0:01:57]} 22. Nb5 {[%emt 0:03:29] [#] Strongly threatening Nc7.} Nxc1 {[%emt 0:07:29]} 23. Raxc1 {[%emt 0:00:38]} Re7 {[%emt 0:04:06] Inhibits Nc7.} 24. Rfe1 {[%emt 0:08:04]} Rxe1+ {[%emt 0:03:54]} 25. Rxe1 {[%emt 0:00:04]} Bd7 {[%emt 0:00:03] Inhibits Re8+.} 26. Nc7 {[%emt 0:03:25]} (26. Rb1 $11) 26... Rc8 $15 {[%emt 0:01:11]} 27. Nd5 {[%emt 0:00:05]} Re8 {[%emt 0:01:34]} (27... Kf8 $15) 28. Rxe8+ $11 {[%emt 0:01:02]} Bxe8 {[%emt 0:00:07][%mdl 4096] Endgame. KBN-KBN} 29. f4 {[%emt 0:00:05]} Bc6 {[%emt 0:00:15]} 30. g4 {[%emt 0:00:28]} Bxd5 {[%emt 0:00:30]} 31. Bxd5 {[%emt 0:00:04] KB-KN} Nd6 {[%emt 0:00:03]} 32. Kf2 {[%emt 0:00:41]} b6 {[%emt 0:07:26]} 33. Ke3 {[%emt 0:03:38]} Nb5 {[%emt 0:03:52]} 34. Kd3 {[%emt 0:01:04]} Kf8 {[%emt 0:00:29]} 35. c4 {[%emt 0:05:36]} Nc7 {[%emt 0:00:15]} 36. Kd4 {[%emt 0:00:34]} Ke7 {[%emt 0:05:10]} 37. c5 {[%emt 0:02:02]} f6 {[%emt 0:06:23]} 38. Bc4 {[%emt 0:01:43]} b5 {[%emt 0:01:43]} (38... bxc5+ $11 39. Kxc5 Ne6+ 40. Bxe6 Kxe6) 39. Bb3 {[%emt 0:02:35]} h6 {[%emt 0:01:53]} 40. f5 {[%emt 0:04:47]} Kd7 {[%emt 0:02:14]} (40... Na6 $1 $11) 41. a4 $16 {[%emt 0:01:47]} bxa4 {[%emt 0:07:58]} 42. Bxa4+ {[%emt 0:00:06]} Ke7 {[%emt 0:00:56]} 43. Kc4 {[%emt 0:01:59]} Kd8 {[%emt 0:00:07]} 44. Bc6 {[%emt 0:04:06]} Ke7 {[%emt 0:00:19]} 45. Kd4 {[%emt 0:01:59]} Kd8 {[%emt 0:00:04]} 46. Bb7 {[%emt 0:00:04] White is better.} Kd7 {[%emt 0:00:06]} 47. Kc4 {[%emt 0:00:12]} Ke7 {[%emt 0:00:11]} 48. Bc6 {[%emt 0:04:45]} Kd8 {[%emt 0:00:11]} 49. Kd4 {[%emt 0:01:20]} Kc8 {[%emt 0:00:18]} 50. Ba4 {[%emt 0:00:33] White is more active.} Kd8 {[%emt 0:00:15]} 51. Kc4 {[%emt 0:01:46] Weighted Error Value: White=0.14 (very precise) /Black=0.14 (very precise) .  Mistake:       	White=3     	Black=5      Inaccurate:     	White=4     	Black=2      OK:         	White=12    	Black=22     Best:        	White=1     	Black=3      Strong:       	White=1     	---} 1/2-1/2